[Event "21st Bangkok CC Open 2024"]
[Site "Bangkok"]
[Date "2024.04.21"]
[Round "9.8"]
[White "Pham Tran Gia Phuc"]
[Black "Sengupta, Deep"]
[Result "1/2-1/2"]
[ECO "C02"]
[WhiteElo "2423"]
[BlackElo "2500"]
[Annotator "TA"]
[PlyCount "120"]
[EventDate "2024.04.13"]
[EventType "swiss"]
[EventCountry "THA"]
[SourceTitle "playchess.com"]
[Source "ChessBase"]
[SourceQuality "1"]
[TimeControl "40/5400+30:1800+30"]

{[%evp 24,120,84,80,92,27,29,25,18,-29,-41,-53,-41,-36,-25,-23,-10,-4,0,0,0,0,0,0,0,-8,0,0,0,0,0,0,0,0,0,-130,0,0,0,0,0,0,12,12,27,0,25,14,34,29,70,0,14,0,11,-47,28,35,29,37,40,-14,18,11,42,38,20,35,26,27,27,34,30,12,16,12,14,10,10,7,24,24,50,50,50,0,0,0,36,27,57,60,83,41,91,55,49,41,41]} 1. e4 {[%emt 0:00:05]} e6 {[%emt 0:06:50]} 2. d4 {[%emt 0:00:07]} d5 {[%emt 0:00:04]} 3. e5 {[%emt 0:00:07]} c5 {[%emt 0:00:04]} 4. c3 {[%emt 0:00:03]} Nc6 {[%emt 0:00:04]} 5. Nf3 {[%emt 0:00:06]} Bd7 {[%emt 0:00:17]} 6. a3 {[%emt 0:01:00]} f6 {[%emt 0:05:52]} 7. Bd3 {[%emt 0:02:32]} c4 {[%emt 0:00:08] C02: French: Advance Variation.} 8. Bc2 {[%emt 0:00:08]} fxe5 {[%emt 0:00:05]} 9. Nxe5 {[%emt 0:00:13]} Nxe5 {[%emt 0:00:15]} 10. dxe5 {[%emt 0:00:07]} g6 {[%emt 0:00:06]} 11. Nd2 $146 {[%emt 0:04:53]} ({Predecessor:} 11. Qg4 Ne7 12. O-O Bg7 13. f4 Qb6+ 14. Kh1 O-O 15. Nd2 Rf7 16. Nf3 Nc6 17. Ng5 {0-1 Martinez,C (1747)-Gomez Troccoli,M (1976) Montevideo Duchamp Cup 3rd 2019 (8)}) 11... Bg7 {[%emt 0:03:57]} 12. Nf3 {[%emt 0:00:38]} Ne7 {[%emt 0:00:30]} 13. Bg5 {[%emt 0:05:04]} Qc7 {[%emt 0:04:46] [#]} 14. Bxe7 {[%emt 0:14:24]} (14. h4 $1 $16) 14... Kxe7 $11 {[%emt 0:00:15]} 15. Qd4 {[%emt 0:00:06]} (15. O-O {simplifies} Raf8 16. Qe2 Kd8 17. Qe3) 15... Raf8 {[%emt 0:02:29]} 16. O-O {[%emt 0:04:35]} (16. O-O-O {is more appropriate.}) 16... Rxf3 $1 $11 {[%emt 0:13:20]} 17. Qh4+ {[%emt 0:00:33]} Kf7 {[%emt 0:02:52]} 18. gxf3 {[%emt 0:00:44]} Bxe5 {[%emt 0:00:22]} 19. Rfe1 {[%emt 0:01:07]} Bf6 {[%emt 0:16:34]} 20. Qg3 {[%emt 0:01:44]} (20. Qh6 {with more complications.} Qd8 21. f4 Bg7 22. Qh3) 20... Qxg3+ {[%emt 0:04:54]} (20... Qd8 {keeps more tension.} 21. f4 Rf8 22. Rad1 Be7) 21. hxg3 {[%emt 0:05:28]} b5 {[%emt 0:00:14]} 22. f4 {[%emt 0:03:27]} a5 {[%emt 0:00:32]} 23. Kf1 {[%emt 0:00:14]} Rd8 {[%emt 0:08:20]} 24. Ke2 {[%emt 0:09:33]} Bc6 {[%emt 0:00:20]} 25. Red1 {[%emt 0:02:37]} Rd7 {[%emt 0:02:26]} 26. f3 {[%emt 0:04:17]} Rb7 {[%emt 0:07:44]} 27. Kd2 {[%emt 0:04:22]} Bg7 {[%emt 0:01:32]} 28. Re1 {[%emt 0:08:02]} Rd7 {[%emt 0:01:30]} 29. Red1 {[%emt 0:02:07]} (29. Rh1 $11) 29... Bb7 {[%emt 0:13:32]} (29... d4 $17 30. cxd4 Bxf3 (30... Bxd4 $2 31. Be4 $19)) 30. Ke2 {[%emt 0:00:33]} Re7 {[%emt 0:00:27]} 31. Kd2 {[%emt 0:00:29]} Rd7 {[%emt 0:03:06]} 32. Ke2 {[%emt 0:00:10]} Kg8 {[%emt 0:00:13]} 33. Rab1 {[%emt 0:02:37]} Rc7 {[%emt 0:01:27]} 34. Kd2 {[%emt 0:00:14]} Ba6 {[%emt 0:01:40]} 35. Re1 {[%emt 0:00:30]} Kf7 {[%emt 0:00:04]} 36. Rh1 {[%emt 0:00:06]} h6 {[%emt 0:00:16]} 37. Rhe1 {[%emt 0:00:11]} (37. Rh4 $14) 37... Bc8 {[%emt 0:00:30]} 38. Rec1 {[%emt 0:01:10]} Bd7 {[%emt 0:01:15]} 39. b3 {[%emt 0:00:37] [#]} (39. Rh1 $11) 39... b4 {[%emt 0:00:25]} (39... cxb3 $1 $15 40. Rxb3 a4) 40. axb4 $11 {[%emt 0:00:46]} axb4 {[%emt 0:00:15]} 41. cxb4 {[%emt 0:30:06]} c3+ {[%emt 0:30:32]} 42. Ke2 {[%emt 0:00:10]} (42. Kd1 $14) 42... Rb7 {[%emt 0:00:00]} 43. Ra1 {[%emt 0:00:00]} Rxb4 {[%emt 0:00:00]} 44. Ra7 {[%emt 0:00:00]} Ke7 {[%emt 0:00:00]} 45. Bxg6 {[%emt 0:00:00]} Rxb3 {[%emt 0:00:00]} 46. Rb1 {[%emt 0:00:00]} Rb2+ {[%emt 0:00:00]} 47. Rxb2 {[%emt 0:00:00]} cxb2 {[%emt 0:00:00]} 48. Kd2 {[%emt 0:00:00]} Bd4 {[%emt 0:00:00]} 49. Rb7 {[%emt 0:00:00]} Kd6 {[%emt 0:00:00]} 50. Bd3 {[%emt 0:00:00]} h5 {[%emt 0:00:22]} 51. Rb8 {[%emt 0:00:00]} Bf2 {[%emt 0:01:34]} 52. g4 {[%emt 0:00:00]} h4 {[%emt 0:02:01]} 53. Rxb2 {[%emt 0:00:00]} h3 {[%emt 0:00:19]} 54. Bf1 {[%emt 0:00:00]} (54. Rb8 $14) 54... h2 $11 {[%emt 0:00:10]} 55. Bg2 {[%emt 0:00:00]} Bg3 {[%emt 0:00:19]} 56. Ke3 {[%emt 0:00:00]} d4+ {[%emt 0:01:50]} 57. Kxd4 {[%emt 0:00:00]} Bxf4 {[%emt 0:00:04]} 58. Ke4 {[%emt 0:00:00]} Bc1 {[%emt 0:00:53]} (58... e5 $1 $14) 59. Rb1 {[%emt 0:00:00]} Bc6+ {[%emt 0:00:07]} 60. Kd3 {[%emt 0:00:00]} Bf4 {[%emt 0:00:09]} 1/2-1/2

[Event "21st Bangkok CC Open 2024"]
[Site "Bangkok"]
[Date "2024.04.21"]
[Round "9.9"]
[White "Danilenko, Dmitriy"]
[Black "Quizon, Daniel"]
[Result "0-1"]
[ECO "B92"]
[WhiteElo "2400"]
[BlackElo "2441"]
[Annotator "TA"]
[PlyCount "122"]
[EventDate "2024.04.13"]
[EventType "swiss"]
[EventCountry "THA"]
[SourceTitle "playchess.com"]
[Source "ChessBase"]
[SourceQuality "1"]
[TimeControl "40/5400+30:1800+30"]

{[%evp 41,122,-129,-151,-138,-125,-145,-152,-310,-281,-250,-243,-300,-303,-312,-308,-317,-317,-305,-283,-285,-261,-306,-315,-293,-284,-304,-310,-319,-318,-303,-252,-230,-215,-233,-229,-231,-224,-228,-228,-213,-184,-176,-160,-170,-178,-175,-145,-216,-214,-257,-240,-263,-239,-248,-237,-335,-305,-343,-343,-336,-273,-387,-386,-407,-396,-458,-464,-458,-463,-481,-472,-504,-513,-606,-618,-577,-580,-825,-821,-874,-872,-948,-925]} 1. e4 {[%emt 0:04:24]} c5 {[%emt 0:00:15]} 2. Nf3 {[%emt 0:00:31]} d6 {[%emt 0:00:21]} 3. d4 {[%emt 0:00:20]} cxd4 {[%emt 0:00:20]} 4. Nxd4 {[%emt 0:00:06]} Nf6 {[%emt 0:00:13]} 5. Nc3 {[%emt 0:00:17]} a6 {[%emt 0:00:10]} 6. Be2 {[%emt 0:00:46]} e5 {[%emt 0:00:43]} 7. Nb3 {[%emt 0:00:08]} Be6 {[%emt 0:03:23]} 8. Be3 {[%emt 0:00:10]} Nbd7 {[%emt 0:07:05]} 9. f4 {[%emt 0:04:56] B92: Sicilian Najdorf: 6 Be2.} Rc8 {[%emt 0:04:21]} 10. f5 {[%emt 0:00:26]} Bc4 {[%emt 0:01:31]} 11. Bxc4 {[%emt 0:00:26]} Rxc4 {[%emt 0:00:01]} 12. Qf3 {[%emt 0:00:47]} b5 {[%emt 0:07:00]} 13. a3 {[%emt 0:00:49]} Qc7 {[%emt 0:05:20]} 14. Nd2 {[%emt 0:13:57]} Rc6 {[%emt 0:15:58]} 15. g4 $146 {[%emt 0:07:07]} ({Predecessor:} 15. O-O Be7 16. g4 h5 17. h3 hxg4 18. hxg4 d5 19. exd5 e4 20. Qg2 Rxc3 21. bxc3 Nxd5 {1-0 Tabak,S (2129)-Rios Escobar,A (2234) Titled Tuesday intern op 04th Jul Early blitz 2023 (10)}) 15... h6 {[%emt 0:01:58]} 16. h4 {[%emt 0:01:24]} Rxc3 {[%emt 0:00:56]} 17. bxc3 {[%emt 0:00:12]} Qxc3 {[%emt 0:00:37]} 18. Ke2 {[%emt 0:01:13]} d5 {[%emt 0:03:42]} 19. exd5 {[%emt 0:11:47]} e4 {[%emt 0:03:06]} 20. Qf4 {[%emt 0:03:30]} Ne5 {[%emt 0:07:35]} 21. Nxe4 {[%emt 0:31:03]} (21. g5 $2 Nh5 22. Qf2 hxg5 (22... Bxa3 23. Rhg1 $11) (22... Qxc2 $2 23. Rh3 $19) 23. Rag1 $19 (23. Nxe4 $2 $19)) (21. Ba7 $15) 21... Qc4+ $17 {[%emt 0:10:36]} 22. Kd1 {[%emt 0:00:17]} Qxe4 {[%emt 0:09:20]} (22... Qxd5+ 23. Kc1 $16) 23. Qxe4 {[%emt 0:01:26]} Nxe4 {[%emt 0:00:04]} 24. Re1 $2 {[%emt 0:04:24] [#]} (24. Bd4 $17 Nf3 (24... Nxg4 $2 25. Re1 $18) 25. Rh3 Nxd4 26. Re3) 24... Nf3 $1 $19 {[%emt 0:00:42]} (24... Nxg4 $2 25. Bd4 Kd7 26. Rxe4 $18) 25. Rf1 {[%emt 0:01:05]} Nc3+ {[%emt 0:01:22]} 26. Kc1 {[%emt 0:00:20]} Nh2 {[%emt 0:00:30]} 27. Re1 {[%emt 0:00:45]} Kd7 {[%emt 0:00:24]} (27... Nxd5 28. Bg1+ (28. Bxh6+ $2 Kd7 $19) 28... Be7 29. Bxh2 $16) 28. Bd2 {[%emt 0:05:29]} Nxd5 {[%emt 0:00:23]} 29. Re4 {[%emt 0:00:00]} Nf6 {[%emt 0:02:54]} 30. Rd4+ {[%emt 0:00:15]} Kc6 {[%emt 0:00:29]} 31. a4 {[%emt 0:01:45]} Bc5 {[%emt 0:01:03]} (31... Nfxg4 32. axb5+ axb5 (32... Kxb5 33. c4+ Kb6 34. Rd8 $11) 33. Ra6+ (33. Rd8 $2 Ba3+ 34. Rxa3 Rxd8 $19) 33... Kb7 34. Ra5 $15) 32. axb5+ {[%emt 0:00:05]} axb5 {[%emt 0:00:04]} ({Resist} 32... Kxb5 33. Ra5+ Kb6 34. Rc4 $19) 33. Rd3 {[%emt 0:00:08]} Nhxg4 {[%emt 0:01:57]} 34. Ra6+ {[%emt 0:00:05]} Kb7 {[%emt 0:02:01]} 35. Ra5 {[%emt 0:00:00]} Kb6 {[%emt 0:01:09]} 36. Rb3 {[%emt 0:00:24]} b4 {[%emt 0:00:32]} 37. Bxb4 {[%emt 0:00:12]} Bxb4 {[%emt 0:00:28]} 38. Ra4 {[%emt 0:00:07]} Kc5 {[%emt 0:04:44]} 39. Rbxb4 {[%emt 0:03:01]} Ne5 {[%emt 0:02:05]} 40. Rb3 {[%emt 0:03:07]} Nfd7 {[%emt 0:01:02]} 41. Ra5+ {[%emt 0:33:06]} Kd6 {[%emt 0:30:39]} 42. Rg3 {[%emt 0:00:00]} Rg8 {[%emt 0:00:00]} 43. Ra6+ {[%emt 0:00:00]} Ke7 {[%emt 0:00:00]} 44. c3 {[%emt 0:00:00]} (44. h5 $17 {is a better defense.}) 44... h5 $19 {[%emt 0:00:00]} 45. Kc2 {[%emt 0:00:00]} Ng4 {[%emt 0:00:00]} 46. Ra7 {[%emt 0:00:00]} Rc8 {[%emt 0:00:00]} 47. Rd3 {[%emt 0:00:00]} Nge5 {[%emt 0:00:00]} 48. Rg3 {[%emt 0:00:00]} (48. Rd4 {was worth a try.}) 48... Kf8 {[%emt 0:00:00]} 49. Ra5 {[%emt 0:00:00]} Nc6 {[%emt 0:00:00]} 50. Ra4 {[%emt 0:00:00]} Ne7 {[%emt 0:00:00]} 51. Rf3 {[%emt 0:00:00]} (51. Rg5 {was called for.}) 51... Ne5 $19 {[%emt 0:00:00]} 52. Rf2 {[%emt 0:00:00]} Nd5 {[%emt 0:00:00]} 53. Ra3 {[%emt 0:00:00]} Ne3+ {[%emt 0:00:00]} 54. Kb1 {[%emt 0:00:00]} Nd3 {[%emt 0:00:00]} 55. Rh2 {[%emt 0:00:03]} Nxf5 {[%emt 0:00:00]} 56. Kc2 {[%emt 0:00:09]} Ne1+ {[%emt 0:00:00]} 57. Kb3 {[%emt 0:00:14]} Nf3 {[%emt 0:00:00]} 58. Rh1 {[%emt 0:00:21]} N5xh4 {[%emt 0:00:00]} 59. Kb4 {[%emt 0:00:03]} g5 {[%emt 0:00:00]} 60. c4 {[%emt 0:00:02]} g4 {[%emt 0:00:00]} 61. c5 {[%emt 0:00:19]} g3 {[%emt 0:13:57]} 0-1

[Event "21st Bangkok CC Open 2024"]
[Site "Bangkok"]
[Date "2024.04.21"]
[Round "9.10"]
[White "Samant Aditya S"]
[Black "Lye, Lik Zang"]
[Result "1/2-1/2"]
[ECO "B12"]
[WhiteElo "2512"]
[BlackElo "2286"]
[Annotator "TA"]
[PlyCount "111"]
[EventDate "2024.04.13"]
[EventType "swiss"]
[EventCountry "THA"]
[SourceTitle "playchess.com"]
[Source "ChessBase"]
[SourceQuality "1"]
[TimeControl "40/5400+30:1800+30"]

{[%evp 15,111,31,33,39,58,50,67,57,78,64,63,78,66,64,70,50,58,51,60,51,45,20,51,75,64,0,0,-50,0,-58,-67,-77,-17,-66,56,0,0,0,0,-32,-20,-58,-48,-57,-47,-66,0,-8,0,0,0,0,33,19,48,0,0,0,0,-139,-145,-202,-170,-155,-49,-55,-8,-8,-8,-8,-8,-5,-4,-4,-4,-4,0,0,0,0,0,0,0,0,0,0,0,0,0,0,0,0,0,0,0,0,0,0]} 1. e4 {[%emt 0:00:03]} c6 {[%emt 0:00:13]} 2. d4 {[%emt 0:00:07]} d5 {[%emt 0:00:06]} 3. e5 {[%emt 0:00:06]} Bf5 {[%emt 0:00:10]} 4. Nf3 {[%emt 0:00:29]} e6 {[%emt 0:00:20]} 5. Be2 {[%emt 0:00:06]} Nd7 {[%emt 0:00:13]} 6. O-O {[%emt 0:00:58]} a5 {[%emt 0:00:18] B12: Caro-Kann: Advance Variation.} 7. a4 {[%emt 0:02:35]} f6 {[%emt 0:00:32]} 8. Bd3 {[%emt 0:09:40]} Bxd3 {[%emt 0:27:08]} 9. cxd3 $146 {[%emt 0:00:15]} ({Predecessor:} 9. Qxd3 fxe5 10. dxe5 Nc5 11. Qd4 Qc7 12. Nc3 b6 13. Qf4 Nh6 14. Nd4 Nf7 15. Re1 {1-0 Agmanov,Z (2460)-Pultinevicius,P (2584) Sant Boi de Llobregat op 4th 2023 (9)}) 9... fxe5 {[%emt 0:09:50]} 10. dxe5 {[%emt 0:00:46]} Bb4 {[%emt 0:01:10]} 11. Nc3 {[%emt 0:02:10]} Qe7 {[%emt 0:04:06]} 12. Ne2 {[%emt 0:05:17]} Nh6 {[%emt 0:08:01]} 13. Bxh6 {[%emt 0:15:52]} gxh6 {[%emt 0:00:10]} 14. d4 {[%emt 0:00:51]} Rg8 {[%emt 0:08:07]} 15. Ne1 {[%emt 0:05:00]} O-O-O {[%emt 0:18:15]} 16. Nd3 {[%emt 0:00:36]} h5 {[%emt 0:02:13]} 17. Nxb4 {[%emt 0:18:18]} Qxb4 {[%emt 0:01:37]} 18. Qd3 {[%emt 0:04:02]} (18. Qe1 {simplifies} Qxe1 19. Rfxe1 Rdf8 20. Ra3) 18... Rdf8 {[%emt 0:09:47]} 19. Ra3 {[%emt 0:04:06]} (19. Qxh7 Qd2 20. Rfe1 (20. Qxh5 $2 Rf5 $19) 20... Qg5 $11) 19... h4 {[%emt 0:06:11]} 20. Rfa1 {[%emt 0:16:26]} (20. Qxh7 $14 Qxb2 21. Re3) 20... Qe7 $11 {[%emt 0:01:17]} 21. Qd2 {[%emt 0:01:38]} (21. Rb3 $11) 21... Qf7 {[%emt 0:00:39]} (21... Nb6 $15 22. Rc3 (22. Qxa5 Nc4 $17) 22... Nc4) 22. Rf1 {[%emt 0:00:18]} (22. f4 $11) 22... Qg6 $15 {[%emt 0:00:32]} 23. g3 $1 {[%emt 0:00:07] [#]} (23. Qxa5 $2 Qxg2#) (23. Nf4 $2 Rxf4 $19) 23... hxg3 {[%emt 0:00:28]} (23... Nb6 $1 $17 {[%cal Rb6c4] ...Nc4 is the strong threat.} 24. Rc3 (24. Qxa5 $2 Nc4 $19) 24... Qf5 (24... Nxa4 $2 25. Rb3 $18)) 24. hxg3 {[%emt 0:00:06]} (24. Rxg3 $11 Qf5 25. Kh1) 24... Qg4 {[%emt 0:00:26]} ({Black should try} 24... Nb6 $1 $15 25. Rc3 (25. Qxa5 $2 Nc4 $19) 25... h5 (25... Nxa4 $2 26. Rb3 $18) (25... Nc4 26. Qc2 $11)) 25. Kg2 {[%emt 0:02:48]} ({White should play} 25. Rb3 $14 Rf7 26. Kg2) 25... Nb6 $11 {[%emt 0:00:38]} 26. f3 {[%emt 0:03:08]} Nc4 {[%emt 0:00:30]} 27. fxg4 {[%emt 0:01:18]} Nxd2 {[%emt 0:00:08]} 28. Rxf8+ {[%emt 0:00:04]} Rxf8 {[%emt 0:00:05]} 29. Nf4 {[%emt 0:00:27]} Kd7 {[%emt 0:01:13]} 30. Ra1 {[%emt 0:00:01]} Nc4 {[%emt 0:00:33]} (30... Nb3 $15 31. Rd1 (31. Rh1 Rf7 $15) 31... c5 32. dxc5 Nxc5) 31. b3 {[%emt 0:01:06]} Ne3+ {[%emt 0:00:28]} 32. Kf3 {[%emt 0:00:07]} Nc2 {[%emt 0:00:06]} 33. Rd1 {[%emt 0:00:09]} b5 {[%emt 0:00:42]} 34. Rd2 {[%emt 0:00:50]} Na1 {[%emt 0:00:41]} 35. Rb2 {[%emt 0:07:11]} (35. Rh2 $14 Nxb3 36. Rxh7+ Kc8 37. axb5 (37. Ke3 bxa4 38. g5 a3 $14) 37... Nxd4+ 38. Ke3 Nxb5 39. g5 (39. Nxe6 Re8 $11)) 35... h6 $1 $11 {[%emt 0:00:27]} 36. Ke3 {[%emt 0:00:49]} Rb8 $1 {[%emt 0:00:28]} 37. axb5 {[%emt 0:00:36]} (37. Rb1 $11 {keeps the balance.} Nc2+ 38. Kd3) 37... Rxb5 $17 {[%emt 0:00:35]} 38. Nd3 {[%emt 0:00:04]} (38. b4 $17 {keeps fighting.}) 38... Nxb3 $19 {[%emt 0:00:35]} 39. Rh2 {[%emt 0:00:48] [#]} c5 {[%emt 0:00:29]} (39... a4 $1 $17 {aiming for ...Ra5.} 40. Rxh6 a3 (40... c5 41. Nxc5+ Nxc5 42. dxc5 $15) 41. Rh7+ Kc8) 40. dxc5 $15 {[%emt 0:00:28]} Nxc5 {[%emt 0:00:30]} (40... a4 $15 {feels stronger.} 41. Rxh6 a3 (41... Nxc5 42. Nxc5+ Rxc5 43. g5 $11) 42. Rh7+ Kc6) 41. Nxc5+ $11 {[%emt 0:01:34]} Rxc5 {[%emt 0:00:12]} 42. Rxh6 {[%emt 0:00:06]} Rc4 {[%emt 0:11:55]} 43. Kf3 {[%emt 0:00:31]} Re4 {[%emt 0:03:33]} 44. Rh7+ {[%emt 0:04:28]} Ke8 {[%emt 0:04:04]} 45. Ra7 {[%emt 0:04:20]} a4 {[%emt 0:01:41]} (45... Rxe5 {simplifies} 46. Rxa5 Kf7 47. Ra4 Re1) 46. g5 {[%emt 0:06:26]} Kf8 {[%emt 0:03:57]} 47. g6 {[%emt 0:05:13]} Rxe5 {[%emt 0:02:08]} 48. g4 {[%emt 0:05:51]} Rg5 {[%emt 0:05:48]} 49. Kf4 {[%emt 0:01:33]} Rxg6 {[%emt 0:00:27]} 50. Ke5 {[%emt 0:03:13]} Rxg4 {[%emt 0:01:14]} 51. Kxe6 {[%emt 0:00:02]} Re4+ {[%emt 0:00:29]} 52. Kxd5 {[%emt 0:00:07]} Rb4 {[%emt 0:00:09]} 53. Kc5 {[%emt 0:00:07]} Rh4 {[%emt 0:00:04]} 54. Kb5 {[%emt 0:00:04]} Ke8 {[%emt 0:00:04]} 55. Rxa4 {[%emt 0:00:05]} Rxa4 {[%emt 0:00:03]} 56. Kxa4 {[%emt 0:00:02]} 1/2-1/2